[Event "Early-Titled-Tuesday-Blitz-March-05-2024"]
[Site "Chess.com"]
[Date "2024.03.05"]
[Round "1"]
[White "DucksParadise"]
[Black "BeyondMadness"]
[Result "1/2-1/2"]
[WhiteElo "2568"]
[BlackElo "2230"]
[TimeControl "180+1"]
[EndTime "8:08:20 PST"]
[Termination "Game drawn by repetition"]

1. c4 {[%clk 0:03:00.9]} 1... e5 {[%clk 0:02:47.3]} 2. g3 {[%clk 0:02:56]} 2...
c6 {[%clk 0:02:46.7]} 3. Nf3 {[%clk 0:02:46.5]} 3... d6 {[%clk 0:02:43.8]} 4.
Nc3 {[%clk 0:02:46.2]} 4... Nf6 {[%clk 0:02:42.1]} 5. Bg2 {[%clk 0:02:43.8]}
5... Be6 {[%clk 0:02:41.7]} 6. b3 {[%clk 0:02:25.9]} 6... Be7 {[%clk 0:02:41.6]}
7. Bb2 {[%clk 0:02:25.6]} 7... O-O {[%clk 0:02:41.5]} 8. O-O {[%clk 0:02:26.2]}
8... Nbd7 {[%clk 0:02:39.1]} 9. d4 {[%clk 0:02:26.3]} 9... Qc7 {[%clk
0:02:31.7]} 10. e4 {[%clk 0:02:24.8]} 10... h6 {[%clk 0:02:24.7]} 11. d5 {[%clk
0:02:22]} 11... Bg4 {[%clk 0:02:23.5]} 12. h3 {[%clk 0:02:20.1]} 12... Bxf3
{[%clk 0:02:23.1]} 13. Bxf3 {[%clk 0:02:16.8]} 13... Rfe8 {[%clk 0:02:06.5]} 14.
Qd2 {[%clk 0:02:00.9]} 14... Nf8 {[%clk 0:02:04.7]} 15. Rac1 {[%clk 0:01:38.8]}
15... Rad8 {[%clk 0:02:01.6]} 16. Rfd1 {[%clk 0:01:34.8]} 16... a6 {[%clk
0:01:56.6]} 17. a4 {[%clk 0:01:29.1]} 17... N6d7 {[%clk 0:01:45.1]} 18. b4
{[%clk 0:01:26.1]} 18... Bg5 {[%clk 0:01:41.5]} 19. Qe2 {[%clk 0:01:23.9]} 19...
Bxc1 {[%clk 0:01:41.1]} 20. Bxc1 {[%clk 0:01:24.8]} 20... c5 {[%clk 0:01:37.2]}
21. b5 {[%clk 0:01:19.7]} 21... axb5 {[%clk 0:01:32.6]} 22. Nxb5 {[%clk
0:01:19.1]} 22... Qb6 {[%clk 0:01:31.6]} 23. a5 {[%clk 0:01:15]} 23... Qxa5
{[%clk 0:01:23.7]} 24. Nxd6 {[%clk 0:01:14.3]} 24... Re7 {[%clk 0:01:24.3]} 25.
Nf5 {[%clk 0:01:05.7]} 25... Ree8 {[%clk 0:01:19.5]} 26. Nd6 {[%clk 0:01:05.7]}
26... Qc7 {[%clk 0:01:18.3]} 27. Nxe8 {[%clk 0:01:03.9]} 27... Rxe8 {[%clk
0:01:19.2]} 28. Be3 {[%clk 0:01:00]} 28... b6 {[%clk 0:01:18.1]} 29. Ra1 {[%clk
0:00:59.3]} 29... Nf6 {[%clk 0:01:11.1]} 30. Qb2 {[%clk 0:00:57.1]} 30... Rb8
{[%clk 0:01:10.2]} 31. Qb5 {[%clk 0:00:51.1]} 31... Ne8 {[%clk 0:01:10.2]} 32.
Qb3 {[%clk 0:00:50.3]} 32... Nd6 {[%clk 0:01:10]} 33. Bg2 {[%clk 0:00:48.8]}
33... Nd7 {[%clk 0:01:09.3]} 34. Qc3 {[%clk 0:00:45.6]} 34... f6 {[%clk
0:01:08.4]} 35. h4 {[%clk 0:00:44.4]} 35... Kh7 {[%clk 0:01:08.8]} 36. Bh3
{[%clk 0:00:44.8]} 36... g6 {[%clk 0:00:59.8]} 37. f3 {[%clk 0:00:39.3]} 37...
b5 {[%clk 0:00:56]} 38. cxb5 {[%clk 0:00:36.4]} 38... Nxb5 {[%clk 0:00:56.7]}
39. Qc4 {[%clk 0:00:28.9]} 39... Nd4 {[%clk 0:00:54.5]} 40. Rf1 {[%clk
0:00:23.4]} 40... Rb2 {[%clk 0:00:47.8]} 41. Rf2 {[%clk 0:00:15]} 41... Rb1+
{[%clk 0:00:45.5]} 42. Kg2 {[%clk 0:00:15.1]} 42... Nb6 {[%clk 0:00:37.1]} 43.
Qd3 {[%clk 0:00:14.6]} 43... Rb3 {[%clk 0:00:32.3]} 44. Qd1 {[%clk 0:00:13.5]}
44... Nc4 {[%clk 0:00:32]} 45. Bxd4 {[%clk 0:00:13.5]} 45... Qb6 {[%clk
0:00:20]} 46. Rc2 {[%clk 0:00:07.5]} 46... cxd4 {[%clk 0:00:16.7]} 47. Rxc4
{[%clk 0:00:06.9]} 47... d3 {[%clk 0:00:13.7]} 48. Rc6 {[%clk 0:00:06.1]} 48...
Rb2+ {[%clk 0:00:09.5]} 49. Kh1 {[%clk 0:00:05.9]} 49... Qf2 {[%clk 0:00:10.1]}
50. Rc7+ {[%clk 0:00:04.4]} 50... Kh8 {[%clk 0:00:09.4]} 51. Rc8+ {[%clk
0:00:04.9]} 51... Kg7 {[%clk 0:00:09.4]} 52. Rc7+ {[%clk 0:00:05.3]} 52... Kg8
{[%clk 0:00:09.6]} 53. Rc8+ {[%clk 0:00:05.9]} 53... Kg7 {[%clk 0:00:10]} 54.
Rc7+ {[%clk 0:00:06.3]} 54... Kh8 {[%clk 0:00:10.4]} 55. Rc8+ {[%clk 0:00:06.2]}
55... Kh7 {[%clk 0:00:11]} 56. Rc7+ {[%clk 0:00:06.5]} 56... Kg8 {[%clk
0:00:11.5]} 57. Be6+ {[%clk 0:00:06.1]} 57... Kh8 {[%clk 0:00:11.1]} 58. Rc8+
{[%clk 0:00:06.6]} 58... Kh7 {[%clk 0:00:10.7]} 59. Rc7+ {[%clk 0:00:05.8]}
59... Kh8 {[%clk 0:00:10.8]} 60. Rc8+ {[%clk 0:00:04.5]} 60... Kh7 {[%clk
0:00:11]} 61. Rc7+ {[%clk 0:00:05.2]} 61... Kh8 {[%clk 0:00:11.1]} 1/2-1/2

[Event "Early-Titled-Tuesday-Blitz-March-05-2024"]
[Site "Chess.com"]
[Date "2024.03.05"]
[Round "1"]
[White "ahkashefi2800"]
[Black "viniciusrego"]
[Result "0-1"]
[WhiteElo "2630"]
[BlackElo "2367"]
[TimeControl "180+1"]
[EndTime "8:08:21 PST"]
[Termination "viniciusrego won on time"]

1. d4 {[%clk 0:02:55.4]} 1... g6 {[%clk 0:02:59.5]} 2. Nf3 {[%clk 0:02:55.5]}
2... Bg7 {[%clk 0:02:59.5]} 3. Bf4 {[%clk 0:02:53.2]} 3... d6 {[%clk 0:02:59.4]}
4. c3 {[%clk 0:02:52.8]} 4... Nf6 {[%clk 0:02:59.3]} 5. e3 {[%clk 0:02:50.8]}
5... b6 {[%clk 0:02:59.7]} 6. Nbd2 {[%clk 0:02:46.6]} 6... Bb7 {[%clk
0:03:00.2]} 7. Bc4 {[%clk 0:02:39]} 7... c5 {[%clk 0:02:55.1]} 8. O-O {[%clk
0:02:36.4]} 8... O-O {[%clk 0:02:54.5]} 9. h3 {[%clk 0:02:34.3]} 9... Nbd7
{[%clk 0:02:53.7]} 10. Re1 {[%clk 0:02:31.7]} 10... Qc7 {[%clk 0:02:45.2]} 11.
Rc1 {[%clk 0:02:28.9]} 11... a6 {[%clk 0:02:39.7]} 12. Bf1 {[%clk 0:02:27.7]}
12... Rac8 {[%clk 0:02:26.5]} 13. a3 {[%clk 0:02:22.2]} 13... Qb8 {[%clk
0:02:22.4]} 14. b4 {[%clk 0:02:20.2]} 14... Qa8 {[%clk 0:02:22.4]} 15. Bg3
{[%clk 0:02:17]} 15... Ne4 {[%clk 0:02:18.2]} 16. Nxe4 {[%clk 0:02:16.7]} 16...
Bxe4 {[%clk 0:02:19.1]} 17. Nd2 {[%clk 0:02:13.5]} 17... Bb7 {[%clk 0:02:19]}
18. Qe2 {[%clk 0:02:11.2]} 18... Nf6 {[%clk 0:02:13.2]} 19. Rcd1 {[%clk
0:02:08.6]} 19... cxd4 {[%clk 0:02:08.1]} 20. cxd4 {[%clk 0:02:07.9]} 20... Rc3
{[%clk 0:02:05]} 21. Nb1 {[%clk 0:02:07]} 21... Rc7 {[%clk 0:02:04.6]} 22. Rc1
{[%clk 0:02:06.9]} 22... Rfc8 {[%clk 0:02:04.3]} 23. Qb2 {[%clk 0:02:04.9]}
23... Ne4 {[%clk 0:02:03]} 24. Rxc7 {[%clk 0:02:03.5]} 24... Rxc7 {[%clk
0:02:02.5]} 25. Bf4 {[%clk 0:01:54.1]} 25... Qc8 {[%clk 0:02:02.3]} 26. Bd3
{[%clk 0:01:51.4]} 26... Nf6 {[%clk 0:01:48]} 27. Nd2 {[%clk 0:01:48.5]} 27...
Rc3 {[%clk 0:01:46.7]} 28. Bf1 {[%clk 0:01:46.1]} 28... Rc2 {[%clk 0:01:43.9]}
29. Qb1 {[%clk 0:01:35.1]} 29... Rxd2 {[%clk 0:01:44]} 30. Rc1 {[%clk 0:01:35]}
30... Qd8 {[%clk 0:01:40.6]} 31. Qb3 {[%clk 0:01:25.4]} 31... Ne4 {[%clk
0:01:37.4]} 32. f3 {[%clk 0:01:17.4]} 32... g5 {[%clk 0:01:32.3]} 33. Bh2 {[%clk
0:01:08.7]} 33... Nf6 {[%clk 0:01:28]} 34. Qc3 {[%clk 0:01:07.7]} 34... Ra2
{[%clk 0:01:27]} 35. Bc4 {[%clk 0:01:07.6]} 35... Bd5 {[%clk 0:01:08.5]} 36.
Bxd5 {[%clk 0:00:58.4]} 36... Nxd5 {[%clk 0:01:09.4]} 37. Qb3 {[%clk 0:00:58.8]}
37... Re2 {[%clk 0:01:03.7]} 38. Qxd5 {[%clk 0:00:57.4]} 38... Rxe3 {[%clk
0:01:04.1]} 39. Qb7 {[%clk 0:00:56.2]} 39... Bxd4 {[%clk 0:01:02.6]} 40. Kf1
{[%clk 0:00:45.1]} 40... Rc3 {[%clk 0:01:03.1]} 41. Rxc3 {[%clk 0:00:37]} 41...
Bxc3 {[%clk 0:01:04]} 42. Bg1 {[%clk 0:00:37.6]} 42... b5 {[%clk 0:00:57.5]} 43.
Qxa6 {[%clk 0:00:34.1]} 43... Qd7 {[%clk 0:00:57.9]} 44. Qa8+ {[%clk 0:00:32.4]}
44... Kg7 {[%clk 0:00:57.4]} 45. Qd5 {[%clk 0:00:32.7]} 45... h6 {[%clk
0:00:56.3]} 46. Ke2 {[%clk 0:00:29.3]} 46... e6 {[%clk 0:00:53.8]} 47. Qd3
{[%clk 0:00:25.3]} 47... Bf6 {[%clk 0:00:54.2]} 48. Bd4 {[%clk 0:00:20.5]} 48...
Bxd4 {[%clk 0:00:52.2]} 49. Qxd4+ {[%clk 0:00:20.7]} 49... Kg8 {[%clk
0:00:52.4]} 50. Qb6 {[%clk 0:00:17.1]} 50... d5 {[%clk 0:00:51.6]} 51. Kd3
{[%clk 0:00:16.8]} 51... e5 {[%clk 0:00:50.8]} 52. Qxh6 {[%clk 0:00:15.1]} 52...
Qf5+ {[%clk 0:00:51.4]} 53. Kd2 {[%clk 0:00:14.7]} 53... Qf4+ {[%clk 0:00:51.9]}
54. Ke2 {[%clk 0:00:14]} 54... d4 {[%clk 0:00:50.8]} 55. Qd6 {[%clk 0:00:13.4]}
55... Qe3+ {[%clk 0:00:50.9]} 56. Kf1 {[%clk 0:00:13.5]} 56... d3 {[%clk
0:00:50]} 57. Qd8+ {[%clk 0:00:13.4]} 57... Kg7 {[%clk 0:00:50.3]} 58. Qd5
{[%clk 0:00:02]} 58... Qe2+ {[%clk 0:00:49.9]} 59. Kg1 {[%clk 0:00:01.7]} 59...
d2 {[%clk 0:00:49.5]} 60. Kh2 {[%clk 0:00:02.2]} 60... d1=Q {[%clk 0:00:49.6]}
61. Qxb5 {[%clk 0:00:02.5]} 61... Qxb5 {[%clk 0:00:42.7]} 62. h4 {[%clk
0:00:01.7]} 62... Qbf1 {[%clk 0:00:41.5]} 63. hxg5 {[%clk 0:00:01.9]} 63... Qf2
{[%clk 0:00:40.9]} 64. Kh3 {[%clk 0:00:02.2]} 64... Qh1+ {[%clk 0:00:36.8]} 65.
Kg4 {[%clk 0:00:02.2]} 65... Qhxg2+ {[%clk 0:00:37.5]} 0-1

[Event "Early-Titled-Tuesday-Blitz-March-05-2024"]
[Site "Chess.com"]
[Date "2024.03.05"]
[Round "1"]
[White "Veganator13"]
[Black "Juwen"]
[Result "0-1"]
[WhiteElo "2284"]
[BlackElo "2606"]
[TimeControl "180+1"]
[EndTime "8:08:22 PST"]
[Termination "Juwen won by checkmate"]

1. c4 {[%clk 0:03:00.2]} 1... e5 {[%clk 0:02:58.8]} 2. g3 {[%clk 0:02:59.3]}
2... c6 {[%clk 0:02:56.3]} 3. d4 {[%clk 0:02:58.6]} 3... e4 {[%clk 0:02:55.3]}
4. Nc3 {[%clk 0:02:57.9]} 4... d5 {[%clk 0:02:55.2]} 5. Bg2 {[%clk 0:02:57.9]}
5... Nf6 {[%clk 0:02:53.9]} 6. Bg5 {[%clk 0:02:58.2]} 6... Be6 {[%clk
0:02:43.9]} 7. e3 {[%clk 0:02:35.6]} 7... Nbd7 {[%clk 0:02:40]} 8. Nge2 {[%clk
0:02:34.4]} 8... h6 {[%clk 0:02:27.9]} 9. cxd5 {[%clk 0:02:22.8]} 9... cxd5
{[%clk 0:02:26.1]} 10. Bf4 {[%clk 0:01:49.4]} 10... g5 {[%clk 0:02:09.7]} 11.
Be5 {[%clk 0:01:48.7]} 11... Nxe5 {[%clk 0:02:09.8]} 12. dxe5 {[%clk 0:01:48.2]}
12... Ng4 {[%clk 0:02:08.1]} 13. Qa4+ {[%clk 0:01:43.7]} 13... Qd7 {[%clk
0:01:51.6]} 14. Qxd7+ {[%clk 0:01:42.8]} 14... Kxd7 {[%clk 0:01:52.5]} 15. Rd1
{[%clk 0:01:38.2]} 15... Kc6 {[%clk 0:01:27.4]} 16. Nd4+ {[%clk 0:01:37.8]}
16... Kb6 {[%clk 0:01:27.7]} 17. Nb3 {[%clk 0:00:50.9]} 17... Bb4 {[%clk
0:01:24.5]} 18. O-O {[%clk 0:00:45]} 18... Bxc3 {[%clk 0:01:24]} 19. bxc3 {[%clk
0:00:44.5]} 19... Nxe5 {[%clk 0:01:24.8]} 20. a4 {[%clk 0:00:41.1]} 20... a6
{[%clk 0:01:16.2]} 21. a5+ {[%clk 0:00:35.8]} 21... Ka7 {[%clk 0:01:16.3]} 22.
Rd4 {[%clk 0:00:19.9]} 22... Rac8 {[%clk 0:01:15.4]} 23. Rb1 {[%clk 0:00:19.4]}
23... Rxc3 {[%clk 0:01:12.1]} 24. Rb4 {[%clk 0:00:19.3]} 24... Rb8 {[%clk
0:01:11.1]} 25. Nd4 {[%clk 0:00:19]} 25... Bd7 {[%clk 0:00:58.2]} 26. Bf1 {[%clk
0:00:15.4]} 26... Ra3 {[%clk 0:00:41.6]} 27. Rb6 {[%clk 0:00:12]} 27... Rxa5
{[%clk 0:00:39.7]} 28. Rd6 {[%clk 0:00:12.3]} 28... Bc6 {[%clk 0:00:25.6]} 29.
h3 {[%clk 0:00:12.6]} 29... h5 {[%clk 0:00:24.7]} 30. Rf6 {[%clk 0:00:11.7]}
30... Rc5 {[%clk 0:00:23.3]} 31. Rf5 {[%clk 0:00:11.2]} 31... Re8 {[%clk
0:00:20.7]} 32. Rxg5 {[%clk 0:00:10.9]} 32... h4 {[%clk 0:00:20.3]} 33. g4
{[%clk 0:00:10.9]} 33... a5 {[%clk 0:00:20.1]} 34. Rf5 {[%clk 0:00:10.8]} 34...
a4 {[%clk 0:00:19.5]} 35. Nb5+ {[%clk 0:00:09.5]} 35... Kb8 {[%clk 0:00:16.6]}
36. Nd6 {[%clk 0:00:09.4]} 36... Re7 {[%clk 0:00:16.8]} 37. Ba6 {[%clk
0:00:08.1]} 37... a3 {[%clk 0:00:16]} 38. Rxe5 {[%clk 0:00:07.4]} 38... Rxe5
{[%clk 0:00:15]} 39. Nxf7 {[%clk 0:00:08.3]} 39... Re7 {[%clk 0:00:13.1]} 40.
Nd6 {[%clk 0:00:08.7]} 40... a2 {[%clk 0:00:13]} 41. Ra1 {[%clk 0:00:08]} 41...
bxa6 {[%clk 0:00:11]} 42. Rxa2 {[%clk 0:00:08.9]} 42... a5 {[%clk 0:00:11.5]}
43. Nf5 {[%clk 0:00:09.5]} 43... Rb7 {[%clk 0:00:10.6]} 44. Nd4 {[%clk
0:00:09.8]} 44... Be8 {[%clk 0:00:07.8]} 45. Kh2 {[%clk 0:00:09.6]} 45... a4
{[%clk 0:00:07]} 46. Ne2 {[%clk 0:00:09.6]} 46... Ra5 {[%clk 0:00:06.8]} 47. Ra3
{[%clk 0:00:09.4]} 47... Rb3 {[%clk 0:00:06.2]} 48. Ra2 {[%clk 0:00:09.8]} 48...
a3 {[%clk 0:00:06.6]} 49. Nc1 {[%clk 0:00:10.4]} 49... Rb2 {[%clk 0:00:06.7]}
50. Ra1 {[%clk 0:00:10.9]} 50... Rc2 {[%clk 0:00:07]} 51. Kg1 {[%clk 0:00:10.4]}
51... Bb5 {[%clk 0:00:05.5]} 52. Na2 {[%clk 0:00:11.3]} 52... Bc4 {[%clk
0:00:05.6]} 53. Rb1+ {[%clk 0:00:12]} 53... Kc8 {[%clk 0:00:04.9]} 54. Nb4
{[%clk 0:00:12.9]} 54... Rb2 {[%clk 0:00:05.1]} 55. Rc1 {[%clk 0:00:13]} 55...
Rxb4 {[%clk 0:00:04.3]} 56. f4 {[%clk 0:00:13.9]} 56... a2 {[%clk 0:00:04.7]}
57. f5 {[%clk 0:00:14.8]} 57... a1=Q {[%clk 0:00:05.2]} 58. Rxa1 {[%clk
0:00:14.9]} 58... Rxa1+ {[%clk 0:00:06.1]} 59. Kf2 {[%clk 0:00:15.4]} 59... Rb2#
{[%clk 0:00:07]} 0-1

[Event "Early-Titled-Tuesday-Blitz-March-05-2024"]
[Site "Chess.com"]
[Date "2024.03.05"]
[Round "1"]
[White "InitiatingASC"]
[Black "DrDreBeats"]
[Result "1-0"]
[WhiteElo "2372"]
[BlackElo "2641"]
[TimeControl "180+1"]
[EndTime "8:08:24 PST"]
[Termination "InitiatingASC won by checkmate"]

1. d4 {[%clk 0:03:00.9]} 1... Nf6 {[%clk 0:02:59.6]} 2. c4 {[%clk 0:03:00.4]}
2... g6 {[%clk 0:02:59.5]} 3. Nc3 {[%clk 0:03:00.2]} 3... Bg7 {[%clk 0:02:59.4]}
4. e4 {[%clk 0:03:00.1]} 4... O-O {[%clk 0:02:58.3]} 5. Nf3 {[%clk 0:02:59]}
5... d6 {[%clk 0:02:57.7]} 6. Be2 {[%clk 0:02:58.5]} 6... e5 {[%clk 0:02:58]} 7.
d5 {[%clk 0:02:54.3]} 7... a5 {[%clk 0:02:57]} 8. h3 {[%clk 0:02:47.1]} 8... Na6
{[%clk 0:02:56.9]} 9. Be3 {[%clk 0:02:46.6]} 9... Nc5 {[%clk 0:02:57.8]} 10. Qc2
{[%clk 0:02:46.1]} 10... Bd7 {[%clk 0:02:55.1]} 11. Nxe5 {[%clk 0:02:37]} 11...
Nfxe4 {[%clk 0:02:41.7]} 12. Nxd7 {[%clk 0:02:30.4]} 12... Bxc3+ {[%clk
0:02:31.5]} 13. bxc3 {[%clk 0:02:25.9]} 13... Qxd7 {[%clk 0:02:32.4]} 14. O-O
{[%clk 0:02:16.1]} 14... b6 {[%clk 0:02:30.7]} 15. Bd4 {[%clk 0:02:15]} 15...
Rae8 {[%clk 0:02:27]} 16. Rfe1 {[%clk 0:01:59.2]} 16... f5 {[%clk 0:02:09.8]}
17. Bf1 {[%clk 0:01:56.7]} 17... Rf7 {[%clk 0:02:06.7]} 18. f3 {[%clk
0:01:19.2]} 18... Ng3 {[%clk 0:01:58.6]} 19. Qf2 {[%clk 0:01:18.6]} 19... Nxf1
{[%clk 0:01:54.4]} 20. Kxf1 {[%clk 0:01:13.4]} 20... Nd3 {[%clk 0:01:31.6]} 21.
Rxe8+ {[%clk 0:01:11.7]} 21... Qxe8 {[%clk 0:01:32.5]} 22. Qh4 {[%clk
0:01:11.3]} 22... Re7 {[%clk 0:01:27.9]} 23. Rd1 {[%clk 0:01:04.5]} 23... Ne5
{[%clk 0:01:19.8]} 24. Re1 {[%clk 0:00:58.5]} 24... Kf8 {[%clk 0:00:44.3]} 25.
Qh6+ {[%clk 0:00:19.7]} 25... Kg8 {[%clk 0:00:41.7]} 26. Qg5 {[%clk 0:00:18.6]}
26... Kf8 {[%clk 0:00:24.6]} 27. Qh6+ {[%clk 0:00:18.3]} 27... Kg8 {[%clk
0:00:23.9]} 28. Qg5 {[%clk 0:00:18.6]} 28... c5 {[%clk 0:00:22.8]} 29. dxc6
{[%clk 0:00:11.3]} 29... Nxc6 {[%clk 0:00:22.7]} 30. Rxe7 {[%clk 0:00:11.3]}
30... Qxe7 {[%clk 0:00:21.3]} 31. Qxe7 {[%clk 0:00:11.4]} 31... Nxe7 {[%clk
0:00:21.9]} 32. Bxb6 {[%clk 0:00:12.1]} 32... a4 {[%clk 0:00:22.4]} 33. c5
{[%clk 0:00:11.6]} 33... d5 {[%clk 0:00:21.2]} 34. Bc7 {[%clk 0:00:11]} 34...
Kf7 {[%clk 0:00:20.7]} 35. Bd6 {[%clk 0:00:11.5]} 35... Nc6 {[%clk 0:00:20.7]}
36. Ke2 {[%clk 0:00:12.1]} 36... Ke6 {[%clk 0:00:19.7]} 37. Kd3 {[%clk
0:00:12.5]} 37... Kd7 {[%clk 0:00:16]} 38. Bg3 {[%clk 0:00:12.4]} 38... Ne7
{[%clk 0:00:13.6]} 39. Kd4 {[%clk 0:00:12.1]} 39... Kc6 {[%clk 0:00:14]} 40. Bd6
{[%clk 0:00:11.7]} 40... Nc8 {[%clk 0:00:13.5]} 41. Ke5 {[%clk 0:00:11.6]} 41...
Na7 {[%clk 0:00:12.7]} 42. Kf6 {[%clk 0:00:11.5]} 42... Nb5 {[%clk 0:00:12.9]}
43. Kg7 {[%clk 0:00:10.5]} 43... Nxc3 {[%clk 0:00:13.2]} 44. Kxh7 {[%clk
0:00:10.8]} 44... Nxa2 {[%clk 0:00:13.4]} 45. Kxg6 {[%clk 0:00:11.5]} 45... Nc3
{[%clk 0:00:10.9]} 46. Be5 {[%clk 0:00:11.2]} 46... Ne2 {[%clk 0:00:11.1]} 47.
h4 {[%clk 0:00:11]} 47... d4 {[%clk 0:00:11.6]} 48. h5 {[%clk 0:00:10.8]} 48...
d3 {[%clk 0:00:12.2]} 49. h6 {[%clk 0:00:10.3]} 49... d2 {[%clk 0:00:12]} 50. h7
{[%clk 0:00:11.2]} 50... d1=Q {[%clk 0:00:12.3]} 51. h8=Q {[%clk 0:00:12.1]}
51... Qd7 {[%clk 0:00:08.8]} 52. Qa8+ {[%clk 0:00:11.3]} 52... Kxc5 {[%clk
0:00:09]} 53. f4 {[%clk 0:00:08.8]} 53... Ng3 {[%clk 0:00:07.6]} 54. Qa5+ {[%clk
0:00:07.3]} 54... Kc4 {[%clk 0:00:06.2]} 55. Qa6+ {[%clk 0:00:07.2]} 55... Kb3
{[%clk 0:00:05.8]} 56. Qb6+ {[%clk 0:00:06.7]} 56... Kc4 {[%clk 0:00:03.9]} 57.
Qa6+ {[%clk 0:00:05.1]} 57... Kb3 {[%clk 0:00:03.4]} 58. Qb6+ {[%clk 0:00:04.9]}
58... Kc2 {[%clk 0:00:03.8]} 59. Qf2+ {[%clk 0:00:04.5]} 59... Kb1 {[%clk
0:00:02]} 60. Qb2# {[%clk 0:00:04]} 1-0

[Event "Early-Titled-Tuesday-Blitz-March-05-2024"]
[Site "Chess.com"]
[Date "2024.03.05"]
[Round "1"]
[White "bescmelasti"]
[Black "ElVital"]
[Result "1-0"]
[WhiteElo "2647"]
[BlackElo "2351"]
[TimeControl "180+1"]
[EndTime "8:08:27 PST"]
[Termination "bescmelasti won by resignation"]

1. e4 {[%clk 0:03:00.9]} 1... c5 {[%clk 0:02:48.3]} 2. Nf3 {[%clk 0:03:00.7]}
2... d6 {[%clk 0:02:48.2]} 3. d4 {[%clk 0:03:00.9]} 3... cxd4 {[%clk 0:02:49.1]}
4. Nxd4 {[%clk 0:03:01.8]} 4... Nf6 {[%clk 0:02:49.2]} 5. Nc3 {[%clk 0:03:02.5]}
5... g6 {[%clk 0:02:49.8]} 6. Be3 {[%clk 0:03:02.3]} 6... Bg7 {[%clk 0:02:50]}
7. f3 {[%clk 0:03:02.8]} 7... a6 {[%clk 0:02:49.8]} 8. Qd2 {[%clk 0:03:02.6]}
8... h5 {[%clk 0:02:50.3]} 9. Be2 {[%clk 0:03:01.8]} 9... b5 {[%clk 0:02:49.6]}
10. a4 {[%clk 0:03:01.6]} 10... b4 {[%clk 0:02:49.1]} 11. Na2 {[%clk 0:03:02.1]}
11... a5 {[%clk 0:02:38.6]} 12. c3 {[%clk 0:03:02.4]} 12... bxc3 {[%clk
0:02:33.7]} 13. Nxc3 {[%clk 0:03:03.3]} 13... O-O {[%clk 0:02:33.4]} 14. O-O
{[%clk 0:03:03.6]} 14... Na6 {[%clk 0:02:30.4]} 15. Rfd1 {[%clk 0:02:51.4]}
15... Nc5 {[%clk 0:02:29.6]} 16. Rab1 {[%clk 0:02:46.3]} 16... Bd7 {[%clk
0:02:22.7]} 17. Ndb5 {[%clk 0:02:43.1]} 17... Qc8 {[%clk 0:02:19.8]} 18. b3
{[%clk 0:02:31.9]} 18... Bc6 {[%clk 0:02:17.4]} 19. Rdc1 {[%clk 0:01:26.8]}
19... Qb7 {[%clk 0:02:16]} 20. Nd4 {[%clk 0:01:22.4]} 20... Bd7 {[%clk
0:02:13.4]} 21. Bf1 {[%clk 0:01:12.4]} 21... Rfc8 {[%clk 0:02:12.6]} 22. Ndb5
{[%clk 0:00:59.9]} 22... Be6 {[%clk 0:02:08.2]} 23. Qd1 {[%clk 0:00:55.1]} 23...
h4 {[%clk 0:02:05.1]} 24. Nd4 {[%clk 0:00:50.2]} 24... Bd7 {[%clk 0:02:04.3]}
25. h3 {[%clk 0:00:49.6]} 25... Nh5 {[%clk 0:02:03.9]} 26. Nd5 {[%clk
0:00:49.2]} 26... Be8 {[%clk 0:02:00.9]} 27. Qe1 {[%clk 0:00:44.3]} 27... Ng3
{[%clk 0:02:00]} 28. Bc4 {[%clk 0:00:31.1]} 28... e6 {[%clk 0:01:59.7]} 29. Nc3
{[%clk 0:00:30.4]} 29... Be5 {[%clk 0:01:45.3]} 30. Nce2 {[%clk 0:00:20.7]}
30... d5 {[%clk 0:01:27.5]} 31. exd5 {[%clk 0:00:19.4]} 31... exd5 {[%clk
0:01:28.4]} 32. Bb5 {[%clk 0:00:19.4]} 32... Bxb5 {[%clk 0:01:26.7]} 33. Nxb5
{[%clk 0:00:17.3]} 33... Nd3 {[%clk 0:01:26.3]} 34. Rxc8+ {[%clk 0:00:18.2]}
34... Rxc8 {[%clk 0:01:26.7]} 35. Qd2 {[%clk 0:00:17]} 35... Nb4 {[%clk
0:01:23.6]} 36. Nxg3 {[%clk 0:00:16.9]} 36... Rc2 {[%clk 0:01:22.1]} 37. Qd1
{[%clk 0:00:09.9]} 37... hxg3 {[%clk 0:01:22.2]} 38. Nd4 {[%clk 0:00:07.6]}
38... Ra2 {[%clk 0:01:17]} 39. Kh1 {[%clk 0:00:03]} 39... Qa6 {[%clk 0:01:08.4]}
40. f4 {[%clk 0:00:02.9]} 40... Bf6 {[%clk 0:01:04.9]} 41. Nb5 {[%clk
0:00:03.1]} 41... Qe6 {[%clk 0:01:02.4]} 42. Qf3 {[%clk 0:00:03.2]} 42... Qe4
{[%clk 0:01:01.3]} 43. Qxe4 {[%clk 0:00:03.2]} 43... dxe4 {[%clk 0:01:02.2]} 44.
Re1 {[%clk 0:00:03.3]} 44... Nd3 {[%clk 0:01:01.9]} 45. Rd1 {[%clk 0:00:01.8]}
45... Rb2 {[%clk 0:01:00.9]} 46. Nd6 {[%clk 0:00:01.6]} 46... Be7 {[%clk
0:00:52.6]} 47. Nxe4 {[%clk 0:00:02]} 47... Rxb3 {[%clk 0:00:47.7]} 48. Nd2
{[%clk 0:00:01.7]} 48... Ra3 {[%clk 0:00:47.8]} 49. Nf1 {[%clk 0:00:02.3]} 49...
Bc5 {[%clk 0:00:38.3]} 50. Rxd3 {[%clk 0:00:02.4]} 50... Ra1 {[%clk 0:00:32]}
51. Bxc5 {[%clk 0:00:03.3]} 51... Rxf1+ {[%clk 0:00:31.6]} 52. Bg1 {[%clk
0:00:04.2]} 52... Ra1 {[%clk 0:00:22.3]} 53. Rxg3 {[%clk 0:00:05.1]} 53... Rxa4
{[%clk 0:00:22.5]} 54. Rf3 {[%clk 0:00:05.4]} 54... Ra1 {[%clk 0:00:23.4]} 55.
Kh2 {[%clk 0:00:05.5]} 55... a4 {[%clk 0:00:24]} 56. Bf2 {[%clk 0:00:05.1]}
56... a3 {[%clk 0:00:24.9]} 57. Kg3 {[%clk 0:00:05.5]} 57... f5 {[%clk
0:00:23.6]} 58. Rb3 {[%clk 0:00:05.5]} 58... Kf7 {[%clk 0:00:22.9]} 59. Bd4
{[%clk 0:00:05.7]} 59... Ra2 {[%clk 0:00:22.6]} 60. Bc5 {[%clk 0:00:05.1]} 60...
Rb2 {[%clk 0:00:20.6]} 61. Rxa3 {[%clk 0:00:05]} 61... Rb5 {[%clk 0:00:19.7]}
62. Ra7+ {[%clk 0:00:05.1]} 62... Ke6 {[%clk 0:00:19.3]} 63. Ra6+ {[%clk
0:00:05.1]} 63... Kd5 {[%clk 0:00:19.5]} 64. Be3 {[%clk 0:00:05.3]} 64... Ke4
{[%clk 0:00:19.7]} 65. Re6+ {[%clk 0:00:04.7]} 65... Kd3 {[%clk 0:00:20.1]} 66.
Kf3 {[%clk 0:00:04.5]} 66... Rb3 {[%clk 0:00:19.7]} 67. Rd6+ {[%clk 0:00:04.5]}
67... Kc4 {[%clk 0:00:18.4]} 68. Rxg6 {[%clk 0:00:05.4]} 1-0